fUSD/lending_fUSD_20260311
["ID","MTS","AMOUNT","RATE_DAILY","PERIOD"]
[408195668,1773210640368,-500.0,0.00016099,2]
[408195669,1773210640377,-500.0,0.00016099,2]
[408195670,1773210640387,-500.0,0.00016099,2]
[408195671,1773210640396,-500.0,0.00016099,2]
[408195672,1773210640407,-217.03,0.00016099,2]
[408195673,1773210640416,-2749.84073866,0.0001618,2]
[408195674,1773210640425,-165.84193606,0.0001638,2]
[408195675,1773210640435,-724.46,0.0001648,2]
[408195676,1773210640444,-2749.84073859,0.00016593,2]
[408195677,1773210640453,-248.96637254,0.00016713,2]
[408195678,1773210640463,-165.84193597,0.00016771,2]
[408195679,1773210640472,-503.0,0.00017,2]
[408195680,1773210640481,-2749.84073859,0.00017007,2]
[408195681,1773210640491,-180.64,0.00017076,2]
[408195682,1773210640500,-165.84193597,0.00017162,2]
[408195683,1773210640509,-724.46,0.00017304,2]
[408195684,1773210640519,-587.0,0.00017369,2]
[408195685,1773210640528,-2749.84073859,0.0001742,2]
[408195686,1773210640537,-165.84193597,0.00017553,2]
[408195687,1773210640546,-9999.99,0.00017728,2]
[408195688,1773210640556,-150.99,0.00017728,2]
[408195689,1773210640565,-547.09,0.00017728,2]
[408195690,1773210640574,-9999.99,0.00017728,2]
[408195691,1773210640584,-62197.56,0.00017728,2]
[408195692,1773210640593,-150.99,0.00017728,2]
[408195693,1773210640602,-21703.56,0.00017728,2]
[408195694,1773210640612,-499.99,0.00017728,2]
[408195695,1773210640621,-299.99,0.00017728,4]
[408195696,1773210640631,-7655.43,0.00017728,2]
[408195697,1773210640640,-150.0,0.00017808,2]
[408195698,1773210640650,-2749.84073859,0.00017833,2]
[408195699,1773210640659,-165.84193597,0.00017944,2]
[408195700,1773210640668,-724.46,0.00018128,2]
[408195701,1773210640678,-2749.84073859,0.00018247,2]
[408195702,1773210640687,-165.84193597,0.00018336,2]
[408195703,1773210640696,-2749.84073859,0.0001866,2]
[408195704,1773210640706,-150.0,0.00018684,2]
[408195705,1773210640715,-165.84193597,0.00018727,2]
[408195706,1773210640724,-724.46,0.00018952,2]
[408195707,1773210640734,-1265.09428998,0.00018999,2]
[408195708,1773210640743,-500.0,0.00018999,2]
[408195709,1773210640752,-578.20924308,0.00018999,2]
[408195710,1773210640762,-174.61919141,0.00018999,2]
[408195711,1773210640771,-510.0,0.00019019,2]
[408195712,1773210640780,-151.31,0.00019023,2]
[408195713,1773210640790,-500.0,0.00019054,2]
[408195714,1773210640799,-8911.26648157,0.00019061,2]
[408195715,1773210640809,-2749.84073859,0.00019073,2]
[408195716,1773210640818,-500.0,0.00019109,2]
[408195717,1773210640827,-350.0,0.00019113,2]
[408195718,1773210640837,-165.84193597,0.00019118,2]
[408195719,1773210640847,-500.0,0.00019164,2]
[408195720,1773210640856,-150.13270217,0.00019178,2]
[408195721,1773210640865,-2000.0,0.000192,2]
[408195722,1773210640874,-180.64,0.0001921,2]
[408195723,1773210640884,-500.0,0.00019219,2]
[408195724,1773210640893,-500.0,0.00019274,2]
[408195725,1773210640903,-350.0,0.00019321,2]
[408195726,1773210640916,-500.0,0.00019329,2]
[408195727,1773210640926,-500.0,0.00019384,2]
[408195728,1773210640934,-500.0,0.00019439,2]
[408195729,1773210640943,-2749.84073859,0.00019487,2]
[408195730,1773210640955,-500.0,0.00019494,2]
[408195731,1773210640965,-165.84193597,0.00019509,2]
[408195732,1773210640976,-181.08010149,0.00019547,2]
[408195733,1773210640985,-500.0,0.00019549,2]
[408195734,1773210640996,-500.0,0.00019604,2]
[408195735,1773210641005,-1000.0,0.00019607,2]
[408195736,1773210641015,-150.0,0.00019621,2]
[408195737,1773210641024,-237.03813108,0.00019621,2]
[408195738,1773210641033,-150.0,0.00019621,2]
[408195739,1773210641042,-150.0,0.00019621,2]
[408195740,1773210641051,-150.0,0.00019621,2]
[408195741,1773210641060,-261.27450762,0.00019621,2]
[408195742,1773210641069,-150.0,0.00019621,2]
[408195743,1773210641079,-150.0,0.00019621,2]
[408195744,1773210641088,-1000.0,0.00019658,2]
[408195745,1773210641097,-500.0,0.00019659,2]
[408195746,1773210641107,-202.59725118,0.00019676,2]
[408195747,1773210641116,-253.69312086,0.00019676,2]
[408195748,1773210641125,-150.0,0.00019676,2]
[408195749,1773210641134,-150.0,0.00019676,2]
[408195750,1773210641144,-159.96492822,0.00019676,2]
[408195751,1773210641154,-353.4369477,0.00019683,2]
[408195752,1773210641163,-213.19407865,0.00019731,2]
[408195753,1773210641172,-150.0,0.00019731,2]
[408195754,1773210641182,-1000.0,0.00019741,2]
[408195755,1773210641193,-500.0,0.0001976,2]
[408195756,1773210641203,-500.0,0.0001976,2]
[408195757,1773210641212,-500.0,0.0001976,2]
[408195758,1773210641222,-500.0,0.0001976,2]
[408195759,1773210641232,-500.0,0.0001976,2]
[408195760,1773210641241,-500.0,0.0001976,2]
[408195761,1773210641250,-605.55782896,0.0001976,2]
[408195762,1773210641260,-500.0,0.0001976,2]
[408195763,1773210641269,-500.0,0.0001976,2]
[408195764,1773210641279,-724.46,0.00019776,2]
[408195765,1773210641288,-158.72164277,0.00019777,2]
[408195766,1773210641297,-150.0,0.00019785,2]
[408195767,1773210641306,-1000.0,0.000198,2]
[408195768,1773210641317,-1467.53759,0.000198,2]
[408195769,1773210641327,-1467.5376,0.000198,2]
[408195770,1773210641336,-150.0,0.0001984,2]
[408195771,1773210641346,-179.348,0.00019878,2]
[408195772,1773210641355,-4993.172,0.00019878,2]
[408195773,1773210641366,-200.0,0.0001989,2]
[408195774,1773210641376,-250.0,0.00019895,2]
[408195775,1773210641386,-500.0,0.00019899,2]
[408195776,1773210641395,-500.0,0.00019899,2]
[408195777,1773210641404,-500.0,0.00019899,2]
[408195778,1773210641413,-500.0,0.00019899,2]
[408195779,1773210641423,-500.0,0.00019899,2]
[408195780,1773210641431,-261.45915393,0.00019899,2]
[408195781,1773210641440,-500.0,0.00019899,2]
[408195782,1773210641449,-490.0,0.00019899,2]
[408195783,1773210641460,-513.03817385,0.00019899,2]
[408195784,1773210641478,-7035.144,0.000199,2]
[408195785,1773210641491,-169.11332774,0.000199,2]
[408195786,1773210641500,-165.84193597,0.000199,2]
[408195787,1773210641509,-2749.84073859,0.000199,2]
[408195788,1773210641519,-2786.3833,0.000199,2]
[408195789,1773210641529,-360.72513598,0.000199,2]
[408195790,1773210641539,-160.61307676,0.000199,2]
[408195791,1773210641548,-476.2948449,0.000199,2]
[408195792,1773210641557,-3577.90070524,0.000199,2]
[408195793,1773210641566,-350.0,0.00019924,2]
[408195794,1773210641575,-150.0,0.00019967,2]
[408195795,1773210641584,-150.0,0.00019986,2]
[408195796,1773210641593,-409.8902603,0.0001999,2]
[408195797,1773210641602,-409.8902603,0.0001999,2]
[408195798,1773210641611,-409.8902603,0.0001999,2]
[408195799,1773210641620,-151.0,0.00019997,2]
[408195800,1773210641629,-300.0,0.00019999,2]
[408195801,1773210641639,-500.0,0.00019999,2]
[408195802,1773210641648,-502.4850874,0.00019999,2]
[408195803,1773210641657,-500.0,0.00019999,2]
[408195804,1773210641666,-500.0,0.00019999,2]
[408195805,1773210641675,-500.0,0.00019999,2]
[408195806,1773210641684,-500.0,0.00019999,2]
[408195807,1773210641693,-503.86249418,0.00019999,2]
[408195808,1773210641703,-500.0,0.00019999,2]
[408195809,1773210641713,-500.0,0.00019999,2]
[408195810,1773210641726,-500.0,0.00019999,2]
[408195811,1773210641736,-500.0,0.00019999,2]
[408195812,1773210641747,-500.0,0.00019999,2]
[408195813,1773210641757,-500.0,0.00019999,2]
[408195814,1773210641768,-500.0,0.00019999,2]
[408195815,1773210641778,-500.0,0.00019999,2]
[408195816,1773210641787,-500.0,0.00019999,2]
[408195817,1773210641799,-500.0,0.00019999,2]
[408195818,1773210641809,-500.0,0.00019999,2]
[408195819,1773210641819,-500.0,0.00019999,2]
[408195820,1773210641829,-500.0,0.00019999,2]
[408195821,1773210641839,-507.08615799,0.00019999,2]
[408195822,1773210641851,-981.54307946,0.00019999,2]
[408195823,1773210641862,-261.24779891,0.00019999,2]
[408195824,1773210641872,-183.07713092,0.00019999,2]
[408195825,1773210641882,-500.0,0.00019999,2]
[408195826,1773210641891,-210.19182398,0.00019999,2]
[408195827,1773210641902,-2272.0,0.00019999,2]
[408195828,1773210641917,-2275.0,0.0002,2]
[408195829,1773210641928,-1044678.81917156,0.0002,2]
[408195860,1773210645607,-355.11250593,0.00017628,2]
[408195861,1773210645617,-150.0,0.000199,2]
[408195862,1773210645626,-877.94818428,0.0002,2]
[408195863,1773210645638,-11977.31862219,0.0002,2]
[408195864,1773210645887,-686.11417984,0.0002,2]
[408195865,1773210645972,-176116.76515338,0.0002,2]
[408195927,1773210932259,1628.76,0.00012317,2]
[408195932,1773211343238,500.0,8.6e-05,2]
[408195938,1773211550483,1152.85542151,0.00012,3]
[408195973,1773211785676,408.33,8.431e-05,2]
[408195974,1773211785884,408.33,8.875e-05,2]
[408195975,1773211786080,408.33,9.318e-05,2]
[408195976,1773211786297,408.33,9.762e-05,2]
[408195977,1773211786706,408.33,0.00010206,2]
[408195978,1773211786911,408.33,0.0001065,2]
[408195979,1773211787129,408.33,0.00011093,2]
[408195980,1773211787337,408.33,0.00011537,2]
[408195981,1773211787886,408.33,0.00011981,2]
[408195982,1773211787917,408.33,0.00012424,2]
[408195983,1773211787989,408.33,0.00012868,2]
[408195984,1773211788186,408.33,0.00013312,2]
[408195987,1773211830630,434.0,0.0002,120]
[408195988,1773211831778,-408.33,0.00013756,2]
[408195989,1773211831788,-408.33,0.00014199,2]
[408195990,1773211831797,-408.33,0.00014643,2]
[408195991,1773211831809,-500.0,0.00015,30]
[408195992,1773211831819,-500.0,0.00015,30]
[408195993,1773211831828,-249.84458592,0.00015024,2]
[408195994,1773211831837,-4194.9,0.00015056,2]
[408195995,1773211831847,-1131.31302523,0.00015073,2]
[408195996,1773211831856,-408.33,0.00015087,2]
[408195997,1773211831865,-151.0,0.00015124,2]
[408195998,1773211831874,-159.24449362,0.00015132,2]
[408195999,1773211831883,-462.51528708,0.00015132,2]
[408196000,1773211831893,-500.0,0.00015132,2]
[408196001,1773211831902,-342.83648688,0.00015132,2]
[408196003,1773211831912,-500.0,0.00015132,2]
[408196004,1773211831921,-500.0,0.00015132,2]
[408196006,1773211831931,-601.10612814,0.00015132,2]
[408196007,1773211831940,-500.0,0.00015132,2]
[408196008,1773211831949,-500.0,0.00015132,2]
[408196009,1773211831959,-500.0,0.00015132,2]
[408196010,1773211831968,-500.0,0.00015132,2]
[408196011,1773211831977,-500.0,0.00015132,2]
[408196012,1773211831986,-500.0,0.00015132,2]
[408196013,1773211831995,-500.0,0.00015132,2]
[408196014,1773211832004,-500.0,0.00015132,2]
[408196015,1773211832013,-500.0,0.00015132,2]
[408196016,1773211832022,-500.0,0.00015132,2]
[408196017,1773211832031,-500.0,0.00015132,2]
[408196019,1773211832041,-500.0,0.00015132,2]
[408196021,1773211832050,-500.0,0.00015132,2]
[408196022,1773211832059,-500.0,0.00015132,2]
[408196023,1773211832289,-500.0,0.00015132,2]
[408196024,1773211832299,-500.0,0.00015132,2]
[408196025,1773211832309,-500.0,0.00015132,2]
[408196026,1773211832318,-500.0,0.00015132,2]
[408196027,1773211832328,-500.0,0.00015132,2]
[408196028,1773211832338,-500.0,0.00015132,2]
[408196029,1773211832347,-500.0,0.00015132,2]
[408196030,1773211832356,-500.0,0.00015132,2]
[408196031,1773211832365,-500.0,0.00015132,2]
[408196032,1773211832374,-319.6001777,0.00015132,2]
[408196033,1773211832383,-500.0,0.00015132,2]
[408196034,1773211832392,-500.0,0.00015132,2]
[408196035,1773211832401,-217.03,0.00015132,2]
[408196036,1773211832410,-500.0,0.00015132,2]
[408196037,1773211832419,-500.0,0.00015132,2]
[408196038,1773211832428,-500.0,0.00015132,2]
[408196039,1773211832438,-500.0,0.00015132,2]
[408196040,1773211832449,-500.0,0.00015132,2]
[408196041,1773211832459,-500.0,0.00015132,2]
[408196042,1773211832470,-113313.73724424,0.00015133,2]
[408196043,1773211832484,-12984.82044812,0.00015133,2]
[408196044,1773211832496,-54157.73526812,0.00015133,2]
[408196045,1773211832513,-798.48795508,0.00015133,2]
[408196053,1773211837812,-1185.97986445,0.00015133,2]
[408196054,1773211837935,-748.26893567,0.00015133,2]
[408196055,1773211837947,-4516.2373811,0.00015133,2]
[408196100,1773211839984,-186655.49740322,0.00015133,2]
[408196101,1773211839994,-589.24209404,0.00015173,2]
[408196102,1773211840003,-500.53605254,0.00015173,2]
[408196103,1773211840013,-500.0,0.00015173,2]
[408196104,1773211840022,-408.33,0.00015531,2]
[408196105,1773211840031,-10810.50477521,0.00015856,2]
[408196106,1773211840041,-408.33,0.00015974,2]
[408196107,1773211840051,-504.64296701,0.00016099,2]
[408196108,1773211840061,-261.45915393,0.00016099,2]
[408196109,1773211840070,-500.0,0.00016099,2]
[408196110,1773211840079,-586.870057,0.00016099,2]
[408196111,1773211840089,-500.0,0.00016099,2]
[408196112,1773211840099,-500.0,0.00016099,2]
[408196113,1773211840108,-500.0,0.00016099,2]
[408196114,1773211840117,-490.0,0.00016099,2]
[408196115,1773211840126,-513.03817385,0.00016099,2]
[408196116,1773211840135,-500.0,0.00016099,2]
[408196117,1773211840144,-500.0,0.00016099,2]
[408196118,1773211840155,-500.0,0.00016099,2]
[408196119,1773211840164,-500.0,0.00016099,2]
[408196120,1773211840173,-500.0,0.00016099,2]
[408196121,1773211840182,-605.55782896,0.00016099,2]
[408196122,1773211840192,-500.0,0.00016099,2]
[408196123,1773211840201,-500.0,0.00016099,2]
[408196124,1773211840211,-500.0,0.00016099,2]
[408196125,1773211840220,-500.0,0.00016099,2]
[408196126,1773211840229,-500.0,0.00016099,2]
[408196127,1773211840241,-500.0,0.00016099,2]
[408196128,1773211840252,-500.0,0.00016099,2]
[408196129,1773211840261,-500.0,0.00016099,2]
[408196130,1773211840271,-500.0,0.00016099,2]
[408196131,1773211840280,-500.0,0.00016099,2]
[408196132,1773211840291,-500.0,0.00016099,2]
[408196133,1773211840302,-500.0,0.00016115,2]
[408196134,1773211840311,-500.0,0.00016115,2]
[408196135,1773211840322,-500.0,0.00016115,2]
[408196136,1773211840331,-62197.56,0.00016116,2]
[408196137,1773211840341,-9999.99,0.00016116,2]
[408196138,1773211840350,-248.96637254,0.0001612,2]
[408196139,1773211840359,-302.58,0.00016162,2]
[408196140,1773211840368,-408.33,0.00016418,2]
[408196141,1773211840377,-195.0,0.000165,2]
[408196142,1773211840387,-195.0,0.000165,2]
[408196143,1773211840396,-2500.0,0.000165,2]
[408196144,1773211840405,-2500.0,0.000165,2]
[408196145,1773211840415,-2500.0,0.000165,2]
[408196146,1773211840423,-2500.0,0.000165,2]
[408196147,1773211840433,-2500.0,0.000165,2]
[408196148,1773211840442,-195.0,0.000165,2]
[408196149,1773211840451,-195.0,0.000165,2]
[408196150,1773211840461,-195.0,0.000165,2]
[408196151,1773211840470,-299.99,0.00016535,4]
[408196152,1773211840479,-547.09,0.00016535,2]
[408196153,1773211840488,-21703.56,0.00016535,2]
[408196154,1773211840498,-7655.43,0.00016535,2]
[408196155,1773211840507,-499.99,0.00016535,2]
[408196156,1773211840517,-9999.99,0.00016535,2]
[408196157,1773211840526,-150.99,0.00016535,2]
[408196158,1773211840535,-150.99,0.00016535,2]
[408196159,1773211840545,-408.33,0.00016862,2]
[408196160,1773211840554,-200.0,0.00016862,2]
[408196161,1773211840563,-150.04,0.00017,2]
[408196162,1773211840573,-503.0,0.00017,2]
[408196164,1773211840582,-166.66,0.00017293,2]
[408196166,1773211840591,-166.66,0.00017657,2]
[408196168,1773211840601,-200.0,0.00017981,2]
[408196169,1773211840609,-166.66,0.00018021,2]
[408196170,1773211840619,-864.86,0.00018171,2]
[408196171,1773211840628,-302.58,0.00018182,2]
[408196172,1773211840637,-2000.0,0.00018203,2]
[408196173,1773211840646,-2000.0,0.00018203,2]
[408196174,1773211840655,-3240.0,0.00018268,2]
[408196175,1773211840665,-166.66,0.00018385,2]
[408196176,1773211840674,-2749.84073859,0.000184,2]
[408196177,1773211840683,-864.86,0.00018625,2]
[408196178,1773211840692,-503.86249418,0.00018659,2]
[408196179,1773211840702,-500.0,0.00018659,2]
[408196180,1773211840711,-500.0,0.00018659,2]
[408196181,1773211840720,-500.0,0.00018659,2]
[408196182,1773211840730,-166.66,0.00018749,2]
[408196183,1773211840739,-2749.84073859,0.000189,2]
[408196184,1773211840749,-500.0,0.00018998,2]
[408196185,1773211840758,-500.0,0.00018998,2]
[408196186,1773211840768,-507.08615799,0.00018998,2]
[408196187,1773211840777,-500.0,0.00018998,2]
[408196188,1773211840786,-1265.09428998,0.00018999,2]
[408196189,1773211840796,-500.0,0.00018999,2]
[408196190,1773211840805,-578.20924308,0.00018999,2]
[408196191,1773211840814,-174.61919141,0.00018999,2]
[408196192,1773211840824,-4633.89,0.00019,2]
[408196193,1773211840833,-350.0,0.00019005,2]
[408196194,1773211840842,-500.0,0.00019054,2]
[408196195,1773211840852,-864.86,0.0001908,2]
[408196196,1773211840862,-500.0,0.00019109,2]
[408196197,1773211840871,-166.66,0.00019113,2]
[408196198,1773211840880,-500.0,0.00019164,2]
[408196199,1773211840889,-2000.0,0.000192,2]
[408196200,1773211840898,-500.0,0.00019219,2]
[408196201,1773211840907,-500.0,0.00019274,2]
[408196202,1773211840917,-500.0,0.00019329,2]
[408196203,1773211840926,-500.0,0.00019384,2]
[408196204,1773211840935,-2749.84073859,0.000194,2]
[408196205,1773211840944,-500.0,0.00019439,2]
[408196206,1773211840953,-350.0,0.00019447,2]
[408196207,1773211840963,-500.0,0.00019494,2]
[408196208,1773211840972,-533.36,0.00019527,2]
[408196209,1773211840981,-864.86,0.00019534,2]
[408196210,1773211840990,-181.08010149,0.00019547,2]
[408196211,1773211840999,-500.0,0.00019549,2]
[408196212,1773211841008,-992.98,0.00019576,2]
[408196213,1773211841017,-485.24,0.00019594,2]
[408196214,1773211841026,-500.0,0.00019604,2]
[408196215,1773211841036,-179.348,0.00019617,2]
[408196216,1773211841045,-4993.172,0.00019617,2]
[408196217,1773211841055,-295.15547733,0.00019621,2]
[408196218,1773211841065,-150.0,0.00019621,2]
[408196219,1773211841074,-500.0,0.00019621,2]
[408196220,1773211841083,-150.0,0.00019621,2]
[408196221,1773211841092,-500.0,0.00019621,2]
[408196222,1773211841102,-150.0,0.00019621,2]
[408196223,1773211841110,-150.0,0.00019621,2]
[408196224,1773211841119,-150.0,0.00019621,2]
[408196225,1773211841128,-150.0,0.00019621,2]
[408196226,1773211841138,-150.0,0.00019621,2]
[408196227,1773211841147,-261.27450762,0.00019621,2]
[408196228,1773211841156,-150.0,0.00019621,2]
[408196229,1773211841165,-150.0,0.00019621,2]
[408196230,1773211841174,-1000.0,0.0001964,2]
[408196231,1773211841183,-151.14564353,0.00019676,2]
[408196232,1773211841192,-504.0416572,0.00019676,2]
[408196233,1773211841201,-150.0,0.00019676,2]
[408196234,1773211841209,-500.0,0.00019676,2]
[408196235,1773211841218,-150.0,0.00019676,2]
[408196236,1773211841227,-150.0,0.00019676,2]
[408196237,1773211841236,-253.69312086,0.00019676,2]
[408196238,1773211841248,-150.0,0.00019676,2]
[408196239,1773211841257,-150.0,0.00019676,2]
[408196240,1773211841267,-202.59725118,0.00019676,2]
[408196241,1773211841277,-1131.31302518,0.00019685,2]
[408196242,1773211841287,-1000.0,0.00019701,2]
[408196243,1773211841297,-314.83,0.00019711,2]
[408196244,1773211841306,-1000.0,0.00019718,2]
[408196245,1773211841315,-237.03813108,0.00019731,2]
[408196246,1773211841326,-150.0,0.00019731,2]
[408196247,1773211841335,-150.0,0.00019731,2]
[408196248,1773211841344,-150.0,0.00019731,2]
[408196249,1773211841354,-213.19407865,0.00019731,2]
[408196250,1773211841363,-158.72164277,0.00019746,2]
[408196251,1773211841372,-150.0,0.00019785,2]
[408196252,1773211841381,-150.0,0.00019785,2]
[408196253,1773211841390,-150.0,0.00019785,2]
[408196254,1773211841399,-978.35839,0.000198,2]
[408196255,1773211841408,-978.3584,0.000198,2]
[408196256,1773211841417,-150.0,0.00019801,2]
[408196257,1773211841427,-533.36,0.00019801,2]
[408196258,1773211841436,-245.57871635,0.0001984,2]
[408196259,1773211841445,-150.0,0.0001984,2]
[408196260,1773211841454,-150.0,0.0001984,2]
[408196261,1773211841463,-485.24,0.00019868,2]
[408196262,1773211841472,-200.0,0.0001989,2]
[408196263,1773211841481,-250.0,0.00019895,2]
[408196264,1773211841490,-250.0,0.00019895,2]
[408196265,1773211841499,-169.11332774,0.000199,2]
[408196266,1773211841509,-2749.84073859,0.000199,2]
[408196267,1773211841518,-2786.3833,0.000199,2]
[408196268,1773211841528,-4223.96464587,0.000199,2]
[408196269,1773211841537,-476.2948449,0.000199,2]
[408196270,1773211841546,-3577.90070524,0.000199,2]
[408196271,1773211841556,-150.0,0.00019933,2]
[408196272,1773211841566,-992.97,0.0001996,2]
[408196273,1773211841575,-150.13270217,0.00019973,2]
[408196274,1773211841584,-864.86,0.00019988,2]
[408196275,1773211841593,-409.8902603,0.0001999,2]
[408196276,1773211841602,-409.8902603,0.0001999,2]
[408196277,1773211841612,-409.8902603,0.0001999,2]
[408196278,1773211841621,-151.0,0.00019997,2]
[408196279,1773211841631,-992.2329803,0.00019998,2]
[408196280,1773211841640,-9861.4807266,0.00019998,2]
[408196281,1773211841649,-2189.0,0.00019999,2]
[408196282,1773211841659,-320.27717688,0.00019999,2]
[408196283,1773211841669,-300.0,0.00019999,2]
[408196284,1773211841678,-300.0,0.00019999,2]
[408196285,1773211841687,-300.0,0.00019999,2]
[408196286,1773211841697,-666.0,0.00019999,2]
[408196287,1773211841707,-1683.51186893,0.00019999,5]
[408196288,1773211841717,-1048.80405626,0.00019999,5]
[408196289,1773211841727,-500.0,0.00019999,2]
[408196290,1773211841738,-500.0,0.00019999,2]
[408196291,1773211841748,-500.0,0.00019999,2]
[408196292,1773211841758,-500.0,0.00019999,2]
[408196293,1773211841767,-500.0,0.00019999,2]
[408196294,1773211841777,-500.0,0.00019999,2]
[408196295,1773211841786,-500.0,0.00019999,2]
[408196296,1773211841795,-500.0,0.00019999,2]
[408196297,1773211841807,-500.0,0.00019999,2]
[408196298,1773211841816,-198.897494,0.00019999,2]
[408196299,1773211841825,-500.0,0.00019999,2]
[408196300,1773211841834,-505.20001815,0.00019999,2]
[408196301,1773211841843,-500.0,0.00019999,2]
[408196302,1773211841852,-500.0,0.00019999,2]
[408196303,1773211841862,-500.0,0.00019999,2]
[408196304,1773211841870,-500.0,0.00019999,2]
[408196305,1773211841879,-500.0,0.00019999,2]
[408196306,1773211841888,-500.0,0.00019999,2]
[408196307,1773211841898,-981.54307946,0.00019999,2]
[408196308,1773211841907,-213.05754719,0.00019999,2]
[408196309,1773211841916,-500.0,0.00019999,2]
[408196310,1773211841925,-500.0,0.00019999,2]
[408196311,1773211841934,-485.32992184,0.00019999,2]
[408196312,1773211841943,-2732.0,0.0002,2]
[408196313,1773211841952,-860318.23996022,0.0002,2]
[408196314,1773211842069,-14248.4206476,0.0002,2]
[408196315,1773211842097,-635.10899384,0.0002,2]
[408196318,1773211843223,-322.94797957,0.0002,2]
[408196320,1773211845988,-396.17123847,0.0002,2]
[408196321,1773211845999,-365.16371793,0.0002,2]
[408196322,1773211848100,217.0,0.0001343,2]
[408196323,1773211867822,5000.01,7.945e-05,2]
[408196324,1773211867843,5000.01,7.945e-05,2]
[408196325,1773211867863,1647.4457,7.945e-05,2]
[408196328,1773211936844,644.66742512,8.6e-05,2]
[408196329,1773211942552,520.88916049,8.6e-05,2]
[408196330,1773211946503,832.56983976,8.6e-05,2]
[408196333,1773212019837,1354.43787463,0.0001354,2]
[408196334,1773212019857,1748.74281137,0.0001354,2]
[408196380,1773212308709,-161.0,0.0001354,3]
[408196381,1773212308736,-162.0,0.0001354,3]
[408196382,1773212308764,-250.0,0.00014217,2]
[408196383,1773212308791,-300.0,0.00014217,2]
[408196384,1773212308817,-150.0,0.00014893,2]
[408196385,1773212308844,-300.0,0.00014893,2]
[408196386,1773212308871,-250.0,0.00014894,2]
[408196387,1773212308897,-300.0,0.00014894,2]
[408196388,1773212311608,-0.01,0.00014894,2]
[408196389,1773212314659,-0.02,0.00014894,2]
[408196395,1773212317661,-0.04,0.00014894,2]
[408196400,1773212320658,-0.08,0.00014894,2]
[408196409,1773212323848,-0.16,0.00014894,2]
[408196418,1773212326855,-0.32,0.00014894,2]
[408196428,1773212329742,-0.64,0.00014894,2]
[408196437,1773212333331,-1.28,0.00014894,2]
[408196446,1773212336397,-2.56,0.00014894,2]
[408196453,1773212338815,-5.12,0.00014894,2]
[408196459,1773212341803,-10.24,0.00014894,2]
[408196468,1773212344851,-20.48,0.00014894,2]
[408196475,1773212347857,-162.0,0.0001354,3]
[408196477,1773212348626,521.88247986,0.0001354,2]
[408196481,1773212350920,-40.96,0.00014894,2]
[408196491,1773212353920,-81.92,0.00014894,2]
[408196500,1773212356988,-163.84,0.00014894,2]
[408196508,1773212359972,-327.68,0.00014894,2]
[408196516,1773212363000,-655.36,0.00014894,2]
[408196522,1773212366005,-1310.72,0.00014894,2]
[408196545,1773212407257,162.0,0.00013664,2]
[408196546,1773212407912,161.0,0.00013664,2]
[408196615,1773212537084,682.80361995,8.664e-05,2]
[408196627,1773212546093,500.0,8.664e-05,2]
[408196638,1773212552547,4500.01,9.5e-05,3]
[408196639,1773212552572,5000.01,9.5e-05,3]